Cogmind - Beta 9.2 @@@ ROGUE MODE // 2019.11.17 @ 21:22:43 Player: zzxc Result: Escaped! Performance ------------- Evolutions (9) 4500 Regions Visited (15) 3000 Robots Destroyed (103) 515 Value Destroyed (2624) 2624 Prototype IDs (58) 1160 Alien Tech Used (0) 0 Bonus (4430) 4430 TOTAL SCORE: 16229 Bonus ------- Follower Combat Kills 430 Entered Garrisons 200 Used RIF Installer 500 Aligned with FarCom 300 Win 3000 Cogmind --------- Core Integrity 1600/1600 Matter 300/300 Energy 273/280 System Corruption 0% Temperature Cool (4) Movement Hovering (36) Location To Epsilon Eridani Parts ------- > --- POWER (2) -------- Light Quantum Reactor Light Quantum Reactor > --- PROPULSION (5) --- Cooled Gravmag System Cooled Gravmag System Improved Antigrav System Experimental Gyrokinetic Inverter Cooled Linear Gravjet > --- UTILITY (16) ----- Large Storage Unit Large Storage Unit Spectral Analyzer Advanced Targeting Computer Experimental Transmission Jammer Advanced Reaction Control System Hardened Medium Armor Plating Layered Medium Armor Plating Hacking Suite Hacking Suite Improved Hacking Suite Advanced Hacking Suite System Shield Relay Coupler [Grunt] (21) Relay Coupler [Sentry] (14) Relay Coupler [Behemoth] (9) > --- WEAPON (2) ------- Improved Remote Datajack Plasma Lance > --- INVENTORY (16) --- Light Particle Reactor Improved Antigrav System Improved Antigrav System Improved Gyrokinetic Inverter Combat Linear Gravjet Experimental ECM Suite Relay Coupler [NC] (20) Relay Coupler [NC] (25) Relay Coupler [Hunter] (14) Relay Coupler [Hunter] (14) Relay Coupler [Behemoth] (7) Relay Coupler [Behemoth] (9) Advanced Component Analysis Suite Peak State ------------ > --- POWER ------------ Light Quantum Reactor Light Quantum Reactor > --- PROPULSION ------- Cooled Gravmag System Cooled Gravmag System Improved Antigrav System Experimental Gyrokinetic Inverter Cooled Linear Gravjet > --- UTILITY ---------- Large Storage Unit Large Storage Unit Spectral Analyzer Advanced Targeting Computer Experimental Transmission Jammer Advanced Reaction Control System Layered Medium Armor Plating Hacking Suite Hacking Suite Improved Hacking Suite Advanced Hacking Suite System Shield Relay Coupler [NC] Relay Coupler [Grunt] Relay Coupler [Sentry] Relay Coupler [Behemoth] > --- WEAPON ----------- Improved Remote Datajack Plasma Lance > --- INVENTORY -------- Light Particle Reactor Improved Antigrav System Improved Antigrav System Improved Gyrokinetic Inverter Combat Linear Gravjet Experimental ECM Suite Hardened Medium Armor Plating Relay Coupler [NC] Relay Coupler [NC] Relay Coupler [Hunter] Relay Coupler [Hunter] Relay Coupler [Behemoth] Relay Coupler [Behemoth] Advanced Component Analysis Suite Deploy-a-Sentry Deploy-a-Sentry [Rating: 153] Favorites ----------- Power Light Fission Core Engine Ion Engine Power Core Light Fission Core Reactor Light Quantum Reactor Propulsion Cooled Airjet Treads Light Treads Leg Aluminum Leg Wheel Wheel Hover Unit Cooled Airjet Utility Large Storage Unit Device Improved Heat Sink Storage Large Storage Unit Processor Advanced Targeting Computer Hackware Hacking Suite Protection Medium Reactive Plating Weapon Improved Remote Datajack Energy Gun Medium Laser Energy Cannon Improved EM Pulse Cannon Ballistic Gun Light Assault Rifle Ballistic Cannon Magnetic Acceleration Cannon Launcher Grenade Launcher Special Weapon Improved Remote Datajack Slashing Weapon Scythe Piercing Weapon Plasma Lance Build | -11 -10 -10 -10 -9 -8 -7 -7 -6 -5 -5 -5 -4 -3 -2 -1 ------- Run | Scr Mat Min Exi Min Mat Fac Gar Fac Fac Was Fac Fac Res Res Acc Slots Evolved 18 | . . . . . 4 2 . 2 2 . . 2 2 2 2 Power 1 | . . . . . . . . 1 . . . . . . . Propulsion 3 | . . . . . . 2 . 1 . . . . . . . Utility 14 | . . . . . 4 . . . 2 . . 2 2 2 2 Weapon . | . . . . . . . . . . . . . . . . Parts Attached 182 | 6 12 5 3 5 14 11 4 29 15 . 8 10 8 26 26 Power 13 | 1 . . . 1 2 . 1 2 3 . . . 1 1 1 Engine 4 | 1 . . . 1 1 . 1 . . . . . . . . Core 7 | . . . . . 1 . . 2 3 . . . 1 . . Reactor 2 | . . . . . . . . . . . . . . 1 1 Propulsion 40 | 2 1 2 . 1 4 4 . 7 . . . 4 . 8 7 Treads 6 | . . . . . 2 3 . . . . . . . 1 . Leg 6 | . . 2 . 1 2 1 . . . . . . . . . Wheel 3 | 2 1 . . . . . . . . . . . . . . Hover 25 | . . . . . . . . 7 . . . 4 . 7 7 Flight . | . . . . . . . . . . . . . . . . Utility 83 | 1 5 . 1 . 6 5 . 10 10 . 3 5 4 15 18 Device 28 | . 1 . . . 2 1 . 2 2 . 1 1 1 7 10 Storage 7 | 1 1 . 1 . . 2 . 1 . . . 1 . . . Processor 7 | . 1 . . . . . . 2 . . . . 2 2 . Hackware 20 | . . . . . . 1 . 2 5 . 1 3 1 3 4 Protection 21 | . 2 . . . 4 1 . 3 3 . 1 . . 3 4 Artifact . | . . . . . . . . . . . . . . . . Weapon 46 | 2 6 3 2 3 2 2 3 10 2 . 5 1 3 2 . Energy Gun 12 | 1 5 3 1 1 1 . . . . . . . . . . Energy Cannon 10 | . . . 1 . 1 1 . 4 . . 2 . 1 . . Ballistic Gun 1 | 1 . . . . . . . . . . . . . . . Ballistic Cannon 9 | . . . . . . 1 1 4 1 . 2 . . . . Launcher 7 | . 1 . . 2 . . 2 1 . . 1 . . . . Special Weapon 4 | . . . . . . . . 1 1 . . . . 2 . Impact Weapon . | . . . . . . . . . . . . . . . . Slashing Weapon 2 | . . . . . . . . . . . . 1 1 . . Piercing Weapon 1 | . . . . . . . . . . . . . 1 . . Special Melee Weapon . | . . . . . . . . . . . . . . . . Unidentified Prototypes 1 | . . . . . . . . . . . . . . 1 . Parts Lost 9 | . 2 2 . 4 . . . . . . . . . 1 . Power 1 | . . . . 1 . . . . . . . . . . . Propulsion 2 | . 1 1 . . . . . . . . . . . . . Utility 1 | . . . . . . . . . . . . . . 1 . Weapon 5 | . 1 1 . 3 . . . . . . . . . . . Highest Loss Streak 2 | . 1 1 . 2 . . . . . . . . . 1 . Average Slot Usage (%) 96 | . 98 99 99 95 97 97 100 92 94 94 93 95 93 96 99 Engine 4 | . 14 14 14 13 5 7 7 . . . . . . . . Core 5 | . . . . . 3 . . 12 11 11 11 10 9 7 . Treads 4 | . . . . . 8 27 30 . . . . . . . . Leg 5 | . . 15 28 28 9 . . . . . . . . . . Wheel 1 | . 27 11 . . . . . . . . . . . . . Hover 12 | . . . . . . . . 26 23 23 23 22 19 18 20 Device 5 | . . 14 10 . 13 4 . 4 2 . 1 3 5 7 7 Storage 14 | . 14 14 18 28 18 23 30 13 11 11 11 10 9 8 8 Processor 1 | . . . . . . . . 4 1 . . . 3 7 8 Hackware 15 | . . . . . . . 7 12 23 29 28 31 30 30 35 Protection 6 | . 12 . . . 21 16 7 2 5 5 3 5 4 3 4 Energy Gun 5 | . 17 28 27 17 . . . . . . . . . . . Energy Cannon 2 | . . . . . 6 7 7 3 3 . 1 . . . . Ballistic Cannon 1 | . . . . . . 6 2 2 1 5 3 . . . . Launcher 1 | . . . . 7 9 1 4 . . . . . . . . Special Weapon 2 | . . . . . . . . 5 5 5 5 5 4 4 4 Naked Turns . | . . . . . . . . . . . . . . . . Heaviest Build 127 | 11 28 27 41 41 88 127 107 73 69 58 59 68 65 70 88 Greatest Support 90 | 20 26 26 20 30 40 83 83 76 76 76 76 76 75 81 90 Greatest Overweight (x) 3 | 1 1 1 2 2 3 1 1 1 . . . . . 1 . Average Overweight (x) . | . . . 1 1 1 1 1 . . . . . . . . Largest Inventory Capacity 28 | 6 10 10 16 16 16 28 28 28 14 14 14 20 16 16 16 Average Capacity 15 | 5 9 10 11 16 16 22 28 14 14 14 14 16 16 16 16 Most Carried 28 | 6 10 10 13 15 16 28 28 27 14 14 14 16 16 16 16 Average Carried 15 | 3 8 9 10 14 15 22 27 14 13 14 13 14 15 15 15 Final Capacity 28 | 6 10 10 16 16 16 28 28 14 14 14 14 16 16 16 16 Final Carried 28 | 6 8 10 13 14 16 28 28 14 14 14 14 15 16 16 13 Class Distribution -------------------- 29% | Mutant 17% | Bothacker-Mutant 15% | Hacker-Mutant 10% | Scavenger-Mutant 6% | Scout 6% | Hauler-Mutant 4% | Hacker-Sprinter 4% | Wizard-Mutant Dominant Class ---------------- Mutant | -10/Materials Mutant | -10/Mines Mutant | -10/Exiles Mutant | -9/Mines Mutant | -8/Materials Scavenger-Mutant | -7/Factory Hauler-Mutant | -7/Garrison Scout | -6/Factory Bothacker-Mutant | -5/Factory Bothacker-Mutant | -5/Waste Bothacker-Mutant | -5/Factory Hacker-Mutant | -4/Factory Hacker-Mutant | -3/Research Hacker-Sprinter | -2/Research Wizard-Mutant | -1/Access Resources | -11 -10 -10 -10 -9 -8 -7 -7 -6 -5 -5 -5 -4 -3 -2 -1 ----------- Run | Scr Mat Min Exi Min Mat Fac Gar Fac Fac Was Fac Fac Res Res Acc Matter Collected 3105 | 260 161 45 . 236 150 141 149 490 55 179 262 90 150 316 421 Remotely . | . . . . . . . . . . . . . . . . Salvage Created 4305 | . 357 212 . 55 388 625 102 624 55 . 208 174 66 927 512 Parts 202 | . 25 9 . 8 27 22 9 16 2 . 14 4 3 40 23 Haulers Intercepted 14 | . 1 . . . 1 3 . 1 . . 1 2 . 4 1 Recyclers Shooed 10 | . 4 . . . 3 1 . 2 . . . . . . . Parts Field Recycled . | . . . . . . . . . . . . . . . . Retrieved Matter . | . . . . . . . . . . . . . . . . Parts Self-Destructed . | . . . . . . . . . . . . . . . . Prevented . | . . . . . . . . . . . . . . . . Kills | -11 -10 -10 -10 -9 -8 -7 -7 -6 -5 -5 -5 -4 -3 -2 -1 ------- Run | Scr Mat Min Exi Min Mat Fac Gar Fac Fac Was Fac Fac Res Res Acc Combat Hostiles Destroyed 55 | . 8 5 . 10 7 2 7 6 . . 3 . 1 2 4 Melee 7 | . . . . . . . . . . . . . 1 2 4 Guns 8 | . 4 4 . . . . . . . . . . . . . Cannons 9 | . . . . . 4 2 1 2 . . . . . . . AOE 29 | . 3 . . 10 3 . 6 4 . . 3 . . . . Classes Destroyed 12 | . 6 . . 1 2 1 1 . . . 1 . . . . Worker 8 | . . . . . . 1 . . 1 . 2 . . 4 . Builder 2 | . 1 . . . . . . . . . . . . 1 . Tunneler 3 | . . . . . . . . . . . 2 . . . 1 Hauler 14 | . 1 . . . 1 3 . 1 . . 1 2 . 4 1 Recycler 8 | . 1 . . . 1 3 . 2 . . . . . 1 . Operator 2 | . . . . . 1 . . . . . . . . 1 . Watcher 11 | . 1 . . . . 3 . 3 1 . . . . 2 1 Swarmer 23 | . 3 . . 4 3 . 6 4 . . 3 . . . . Grunt 19 | . 5 5 . . . 2 . 2 . . . . 1 2 2 Sentry 5 | . . . . . 4 . . . . . . . . . 1 Programmer 2 | . . . . . . . 1 . . . . . . . 1 Assembled 6 | . . . . 6 . . . . . . . . . . . Best Kill Streak 6 | . 5 2 . 5 3 4 4 4 1 . 6 1 1 5 3 Combat Bots Only 5 | . 3 2 . 5 3 1 4 4 . . 3 . 1 1 2 Max Kills in Single Turn 4 | . 2 1 . 2 3 2 2 1 1 . 4 1 1 1 1 Gunslinging . | . . . . . . . . . . . . . . . . Exploded 3 | . 2 . . 2 3 . 2 1 . . 2 . . . . Melee 1 | . . . . . . . . . . . . . 1 1 1 Uniques/NPCs Destroyed . | . . . . . . . . . . . . . . . . Combat | -11 -10 -10 -10 -9 -8 -7 -7 -6 -5 -5 -5 -4 -3 -2 -1 -------- Run | Scr Mat Min Exi Min Mat Fac Gar Fac Fac Was Fac Fac Res Res Acc Damage Taken 2025 | . 343 184 . 408 176 82 280 101 25 . 382 . 18 26 . Core 298 | . 53 48 . 85 26 . 12 6 . . 68 . . . . Absorbed by Shields 16 | . . . . . . . . . . . 16 . . . . Core Remaining (%) 91 | 100 . . . 25 95 . 98 99 . . 93 100 100 100 100 Volleys Fired 299 | . 35 15 . 18 19 28 13 59 25 1 47 4 15 9 11 Largest 2 | . 2 2 . 2 1 1 1 1 1 1 1 1 1 1 1 Hottest 115 | . 100 115 . 100 68 69 69 69 69 40 81 40 81 40 40 Shots Fired 349 | . 67 29 . 22 19 28 13 59 25 1 47 4 15 9 11 Gun 101 | . 64 29 . 8 . . . . . . . . . . . Cannon 138 | . . . . . 18 28 9 38 16 . 23 . 6 . . Launcher 32 | . 3 . . 14 1 . 4 5 . . 5 . . . . Special 78 | . . . . . . . . 16 9 1 19 4 9 9 11 Kinetic 57 | . 21 . . . . 8 7 12 4 . 5 . . . . Thermal 99 | . 43 29 . 8 18 1 . . . . . . . . . Explosive 32 | . 3 . . 14 1 . 4 5 . . 5 . . . . Electromagnetic 83 | . . . . . . 19 2 26 12 . 18 . 6 . . Robot Hit Streak 21 | . 17 19 . 2 14 21 3 13 9 1 7 9 8 11 13 Robot Miss Streak 5 | . 2 1 . 2 1 1 2 2 3 . 5 . 1 1 1 Penetration Max 1 | . . . . . . 1 . . . . . . . . . Secondary Targets 2 | . 2 . . . . . . . . . . . . . . Max Gunslinging Chain 1 | . 1 . . . . . . . . . . . . . . Shots Hit Robots 285 | . 50 24 . 8 18 21 6 34 13 1 25 13 16 38 18 Core Hits 141 | . 21 11 . 17 10 11 13 16 1 . 13 3 2 16 7 Critical Hits 4 | . . . . . . 2 2 . . . . . . . . Critical Kills 1 | . . . . . . 1 . . . . . . . . . Critical Parts Destroyed 3 | . . . . . . 1 2 . . . . . . . . Melee Attacks 164 | . . . . . . . . . . . . 19 38 71 36 Impact . | . . . . . . . . . . . . . . . . Slashing 45 | . . . . . . . . . . . . 19 26 . . Piercing 119 | . . . . . . . . . . . . . 12 71 36 Sneak Attacks 28 | . . . . . . . . . . . . 2 5 15 6 Combat Hostiles 8 | . . . . . . . . . . . . . 1 3 4 Follow-up Attacks . | . . . . . . . . . . . . . . . . Damage Inflicted 10822 | . 955 311 . 484 492 715 426 1176 202 . 829 425 714 3072 1021 Guns 889 | . 554 311 . 24 . . . . . . . . . . . Cannons 2467 | . . . . . 345 659 123 745 202 . 393 . . . . Explosions 2208 | . 401 . . 460 129 48 303 431 . . 436 . . . . Melee 5232 | . . . . . . . . . . . . 425 714 3072 1021 Ramming 26 | . . . . . 18 8 . . . . . . . . . Kinetic 336 | . 127 . . . . 54 123 . . . 32 . . . . Thermal 1502 | . 613 311 . 24 345 48 . 161 . . . . . . . Explosive 1813 | . 215 . . 460 129 . 303 270 . . 436 . . . . Electromagnetic 1913 | . . . . . . 605 . 745 202 . 361 . . . . Impact . | . . . . . . . . . . . . . . . . Slashing 741 | . . . . . . . . . . . . 425 316 . . Piercing 4491 | . . . . . . . . . . . . . 398 3072 1021 Highest Corruption 9 | . . . . 8 . . . . 2 2 2 . 9 . . Average Corruption 3 | . . . . 7 . . . . 2 2 1 . 8 . . Corruption Purged 2 | . . . . . . . . . . . 2 . . . . Effects 26 | . . . . 11 . . . . 10 1 3 . 1 . . Message Errors 7 | . . . . 1 . . . . 4 1 1 . . . . Matter Fused 2 | . . . . 2 . . . . . . . . . . . Heat Flow Errors 8 | . . . . 3 . . . . 3 . 1 . 1 . . Energy Discharges 3 | . . . . 2 . . . . 1 . . . . . . Data Loss (minor) 5 | . . . . 3 . . . . 1 . 1 . . . . Targeting Errors 1 | . . . . . . . . . 1 . . . . . . Overload Shots . | . . . . . . . . . . . . . . . . Overflow Damage 868 | . 57 . . 29 . . . 32 43 . 22 . 159 430 96 Projectiles 83 | . . . . . . . . 32 43 . 8 . . . . Explosions 100 | . 57 . . 29 . . . . . . 14 . . . . Melee 685 | . . . . . . . . . . . . . 159 430 96 Knockbacks 2 | . . . . . . . 2 . . . . . . . . Impact . | . . . . . . . . . . . . . . . . Kinetic 2 | . . . . . . . 2 . . . . . . . . Secondary . | . . . . . . . . . . . . . . . . Self-Inflicted Damage 194 | . 48 . . 30 6 18 32 19 . . 41 . . . . Shots 8 | . 2 . . 1 1 1 1 1 . . 1 . . . . Rammed 4 | . . . . . 3 1 . . . . . . . . . Targets Rammed 5 | . . . . . 4 1 . . . . . . . . . Kicked . | . . . . . . . . . . . . . . . . Crushed 1 | . . . . . 1 . . . . . . . . . . Highest Temperature 451 | . 451 72 . 277 18 44 50 181 284 23 298 49 257 24 44 Average Temperature 63 | . 114 25 . 80 9 13 18 51 69 16 73 19 52 16 17 Received Heat Transfer 429 | . 138 105 . 60 54 36 . 36 . . . . . . . Effects 3 | . 3 . . . . . . . . . . . . . . Damage (minor) 1 | . 1 . . . . . . . . . . . . . . Damage (major) 2 | . 2 . . . . . . . . . . . . . . Siege Activations . | . . . . . . . . . . . . . . . . Robots Corrupted 4 | . . . . . . 1 . 1 1 . 1 . . . . Combat Hostiles . | . . . . . . . . . . . . . . . . Parts Fried 17 | . . . . . . 3 . 12 1 . 1 . . . . Impact Corruptions . | . . . . . . . . . . . . . . . . Robots Melted 2 | . 1 1 . . . . . . . . . . . . . Combat Hostiles 2 | . 1 1 . . . . . . . . . . . . . Parts Melted 2 | . 1 . . . 1 . . . . . . . . . . Heat Transferred 3020 | . 1241 888 . 62 629 . . 200 . . . . . . . Parts Sabotaged . | . . . . . . . . . . . . . . . . Parts Stolen . | . . . . . . . . . . . . . . . . Parts Stripped . | . . . . . . . . . . . . . . . . Power Chain Reactions 3 | . . . . . . 1 . 2 . . . . . . . Missiles Intercepted . | . . . . . . . . . . . . . . . . Alert | -11 -10 -10 -10 -9 -8 -7 -7 -6 -5 -5 -5 -4 -3 -2 -1 ------- Run | Scr Mat Min Exi Min Mat Fac Gar Fac Fac Was Fac Fac Res Res Acc Peak Influence 422 | . 255 121 . 70 184 173 280 390 293 94 242 186 184 222 422 Average Influence 96 | . 99 64 . 5 58 71 136 157 156 60 83 112 68 76 191 Maximum Alert Level 2 | . 1 . . . . . 1 1 1 . 1 . . 1 2 Low Security (%) 89 | 100 81 100 . 100 100 100 79 78 74 100 96 100 100 89 56 Level 1 10 | . 18 . . . . . 20 22 25 . 3 . . 10 40 Level 2 . | . . . . . . . . . . . . . . . 2 Level 3 . | . . . . . . . . . . . . . . . . Level 4 . | . . . . . . . . . . . . . . . . Level 5 . | . . . . . . . . . . . . . . . . High Security . | . . . . . . . . . . . . . . . . Max Security . | . . . . . . . . . . . . . . . . Squads Dispatched 27 | . 2 . . . . 1 . 6 2 . 4 3 3 2 4 Investigation 11 | . 1 . . . . . . 4 2 . . 1 . 1 2 Extermination 7 | . . . . . . . . 1 . . 1 1 1 1 2 Reinforcement 9 | . 1 . . . . 1 . 1 . . 3 1 2 . . Assault . | . . . . . . . . . . . . . . . . Garrison . | . . . . . . . . . . . . . . . . Intercept . | . . . . . . . . . . . . . . . . Construction Impeded 2 | . . . . . . . . 1 . . 1 . . . . Haulers Reinforced 2 | . . . . . . 1 . . . . . . 1 . . Stealth | -11 -10 -10 -10 -9 -8 -7 -7 -6 -5 -5 -5 -4 -3 -2 -1 --------- Run | Scr Mat Min Exi Min Mat Fac Gar Fac Fac Was Fac Fac Res Res Acc Distress Signals 6 | . . . . . . . . 1 . . . 2 1 2 . Communications Jammed 11 | . . . . . . . . . . . . . . 10 1 Distress Signals 10 | . . . . . . . . . . . . . . 9 1 Times Spotted 134 | . 11 5 . 12 7 9 9 14 13 . 21 3 8 10 12 Peak Tracking Total 6 | . 3 2 . 4 2 3 4 3 3 . 5 6 3 5 2 Tactical Retreats 15 | . . . . 2 1 . . 2 1 . 5 1 1 2 . Traps | -11 -10 -10 -10 -9 -8 -7 -7 -6 -5 -5 -5 -4 -3 -2 -1 ------- Run | Scr Mat Min Exi Min Mat Fac Gar Fac Fac Was Fac Fac Res Res Acc Traps Triggered 11 | . 1 . . . . . 1 . 5 . 2 . 2 . . Indirectly . | . . . . . . . . . . . . . . . . Trap Hack Attempts . | . . . . . . . . . . . . . . . . Triggered . | . . . . . . . . . . . . . . . . Disarmed . | . . . . . . . . . . . . . . . . Reprogrammed . | . . . . . . . . . . . . . . . . Reused . | . . . . . . . . . . . . . . . . Traps Extracted . | . . . . . . . . . . . . . . . . Installed . | . . . . . . . . . . . . . . . . Triggered . | . . . . . . . . . . . . . . . . Machines | -11 -10 -10 -10 -9 -8 -7 -7 -6 -5 -5 -5 -4 -3 -2 -1 ---------- Run | Scr Mat Min Exi Min Mat Fac Gar Fac Fac Was Fac Fac Res Res Acc Machines Disabled 6 | . 1 . . . . 1 1 1 . . 2 . . . . Max in Single Turn 1 | . 1 . . . . 1 1 1 . . 1 . . . . Garrison Access 8 | . . . . . . . . 1 3 . 1 . 2 1 . Garrison Relay 1 | . . . . . . . 1 . . . . . . . . Machines Sabotaged . | . . . . . . . . . . . . . . . . Garrisons Compromised . | . . . . . . . . . . . . . . . . Overloaded Fab Kills . | . . . . . . . . . . . . . . . . Fab Network Shutdowns . | . . . . . . . . . . . . . . . . Hacking | -11 -10 -10 -10 -9 -8 -7 -7 -6 -5 -5 -5 -4 -3 -2 -1 --------- Run | Scr Mat Min Exi Min Mat Fac Gar Fac Fac Was Fac Fac Res Res Acc Machines Accessed 71 | . 5 . 2 . 4 5 . 9 10 . 10 6 6 8 6 Terminals 43 | . 4 . . . 4 2 . 5 6 . 8 2 4 5 3 Fabricators 5 | . . . . . . 1 . 1 . . 1 1 . . 1 Repair Stations 2 | . . . . . . . . . . . . 1 . 1 . Recycling Units 3 | . 1 . . . . . . 1 . . . 1 . . . Scanalyzers 1 | . . . . . . 1 . . . . . . . . . Garrison Access 15 | . . . . . . 1 . 2 4 . 1 1 2 2 2 Total Hacks 185 | . 14 . 2 . 12 11 . 22 21 . 23 18 17 28 17 Successful 129 | . 7 . 2 . 7 7 . 17 16 . 14 12 11 24 12 Failed 56 | . 7 . . . 5 4 . 5 5 . 9 6 6 4 5 Catastrophic 3 | . . . . . . 1 . 1 . . . . 1 . . Database Lockouts . | . . . . . . . . . . . . . . . . Manual 73 | . 6 . 1 . 6 1 . 9 4 . 13 10 8 7 8 Terminals 117 | . 13 . . . 12 5 . 10 13 . 20 6 12 17 9 Fabricators 17 | . . . . . . 2 . 7 . . 1 4 . . 3 Repair Stations 9 | . . . . . . . . . . . . 2 . 7 . Recycling Units 4 | . 1 . . . . . . 1 . . . 2 . . . Scanalyzers 2 | . . . . . . 2 . . . . . . . . . Garrison Access 34 | . . . . . . 2 . 4 8 . 2 4 5 4 5 Terminal Hacks 54 | . 5 . 2 . 3 3 . 4 7 . 8 2 5 10 5 Record 1 | . . . 1 . . . . . . . . . . . . Part Schematic 1 | . . . . . . . . 1 . . . . . . . Robot Schematic 1 | . . . . . . 1 . . . . . . . . . Robot Analysis 2 | . 2 . . . . . . . . . . . . . . Prototype ID Bank 4 | . . . . . . . . 1 . . 1 . . 2 . Open Door 1 | . . . . . . . . . . . . . . . 1 Level Access Points 4 | . . . . . . . . . . . 1 1 . 1 1 Branch Access Points 3 | . . . . . . . . . 1 . 1 . 1 . . Emergency Access Points 2 | . . . . . 1 . . . . . . . . 1 . Machine Index 1 | . . . . . . . . . 1 . . . . . . Terminal Index 3 | . 1 . . . . . . . 1 . . . 1 . . Garrison Index 3 | . . . . . 1 . . . . . 1 . 1 . . Unreport Threat 1 | . . . . . . . . 1 . . . . . . . Locate Traps 9 | . 1 . . . . 2 . . 2 . 1 . 1 1 1 Transport Status 3 | . . . . . . . . . 1 . . . . 1 1 Recall Investigation 2 | . . . . . . . . . . . . . . 2 . Recall Extermination 5 | . . . . . . . . 1 . . 1 . 1 1 1 Recall Reinforcements 1 | . . . . . . . . . . . 1 . . . . Hauler Manifests 1 | . . . . . . . . . 1 . . . . . . Zone Layout 5 | . 1 . . . 1 . . . . . 1 1 . 1 . EX-Prototype ID Bank 1 | . . . 1 . . . . . . . . . . . . Fabricator Hacks 3 | . . . . . . 1 . 2 . . . . . . . Load Schematic 1 | . . . . . . . . 1 . . . . . . . Build 2 | . . . . . . 1 . 1 . . . . . . . Repair Station Hacks 8 | . . . . . . . . . . . . 2 . 6 . Scan Component 4 | . . . . . . . . . . . . 1 . 3 . Repair 4 | . . . . . . . . . . . . 1 . 3 . Recycling Unit Hacks 1 | . . . . . . . . . . . . 1 . . . Report Inventory 1 | . . . . . . . . . . . . 1 . . . Scanalyzer 2 | . . . . . . 2 . . . . . . . . . Insert Component 2 | . . . . . . 2 . . . . . . . . . Garrison Access Hacks 23 | . . . . . . 1 . 3 7 . 2 1 4 3 2 Unlock Access 1 | . . . . . . 1 . . . . . . . . . Seal Access 8 | . . . . . . . . 1 3 . 1 . 2 1 . Coupler Status 14 | . . . . . . . . 2 4 . 1 1 2 2 2 Unauthorized Hacks 90 | . 6 . . . 8 1 . 17 4 . 8 16 7 10 13 Terminals 24 | . 1 . . . 4 . . 4 1 . 3 3 2 4 2 Track 4 | . 1 . . . 1 . . . . . . 1 . 1 . Assimilate 2 | . . . . . . . . . . . 1 . 1 . . Botnet 17 | . . . . . 3 . . 4 1 . 2 1 1 3 2 Operators 1 | . . . . . . . . . . . . 1 . . . Fabricators 5 | . . . . . . . . 2 . . 1 1 . . 1 Prioritize 1 | . . . . . . . . 1 . . . . . . . Haulers 4 | . . . . . . . . 1 . . 1 1 . . 1 Repair Stations . | . . . . . . . . . . . . . . . . Recycling Units 3 | . 1 . . . . . . 1 . . . 1 . . . Reject 2 | . 1 . . . . . . . . . . 1 . . . Tunnel 1 | . . . . . . . . 1 . . . . . . . Scanalyzers . | . . . . . . . . . . . . . . . . Garrison Access 6 | . . . . . . . . 1 1 . . 1 . 1 2 Eject 6 | . . . . . . . . 1 1 . . 1 . 1 2 Data Cores Recovered 2 | . . . . . 1 . . . . . . . . 1 . Used . | . . . . . . . . . . . . . . . . Hacking Detections 57 | . 5 . . . 4 4 . 6 6 . 10 6 5 6 5 Full Trace Events 2 | . . . . . . . . 2 . . . . . . . Feedback Events . | . . . . . . . . . . . . . . . . Feedback Blocked . | . . . . . . . . . . . . . . . . Robot Schematics Acquired 1 | . . . . . . 1 . . . . . . . . . Robots Built 2 | . . . . . . . . 2 . . . . . . . Matter 252 | . . . . . . . . 252 . . . . . . . Time 134 | . . . . . . . . 134 . . . . . . . Total Robot Build Rating 8 | . . . . . . . . 8 . . . . . . . Part Schematics Acquired 1 | . . . . . . . . 1 . . . . . . . Parts Built 1 | . . . . . . 1 . . . . . . . . . Matter 168 | . . . . . . 168 . . . . . . . . . Time 84 | . . . . . . 84 . . . . . . . . . Total Part Build Rating 4 | . . . . . . 4 . . . . . . . . . Parts Repaired 4 | . . . . . . . . . . . . 1 . 3 . Time 92 | . . . . . . . . . . . . 16 . 76 . Parts Recycled . | . . . . . . . . . . . . . . . . Recycled Matter . | . . . . . . . . . . . . . . . . Retrieved Matter . | . . . . . . . . . . . . . . . . Retrieved Components . | . . . . . . . . . . . . . . . . Parts Scanalyzed . | . . . . . . . . . . . . . . . . Part Schematics Acquired . | . . . . . . . . . . . . . . . . Parts Damaged . | . . . . . . . . . . . . . . . . Bothacking | -11 -10 -10 -10 -9 -8 -7 -7 -6 -5 -5 -5 -4 -3 -2 -1 ------------ Run | Scr Mat Min Exi Min Mat Fac Gar Fac Fac Was Fac Fac Res Res Acc Used RIF Installer 1 | . . . . . . . 1 . . . . . . . . Robots Hacked 52 | . . . . . . . . 10 8 1 9 3 6 7 8 Non-combat 37 | . . . . . . . . 9 7 . 7 3 4 3 4 Combat 15 | . . . . . . . . 1 1 1 2 . 2 4 4 Robot Hacks Applied 57 | . . . . . . . . 11 8 1 10 4 7 8 8 parse_system 3 | . . . . . . . . 1 . . . . . 1 1 no_distress 2 | . . . . . . . . . 1 . 1 . . . . find_chute 4 | . . . . . . . . 2 1 . . 1 . . . hold_bot 1 | . . . . . . . . . . . 1 . . . . ignore_repairs 3 | . . . . . . . . 1 . . . . 1 1 . find_fabricator 1 | . . . . . . . . . . . . 1 . . . drop_inventory 11 | . . . . . . . . 2 3 . 1 . 3 2 . recall_reinforcements 1 | . . . . . . . . . . . . . 1 . . find_recycling 1 | . . . . . . . . 1 . . . . . . . ignore_parts 4 | . . . . . . . . 1 . . . . . . 3 find_terminals 1 | . . . . . . . . . . . . 1 . . . locate_traps 2 | . . . . . . . . . . . 1 1 . . . block_reporting 3 | . . . . . . . . . . . 3 . . . . summon_haulers 1 | . . . . . . . . . 1 . . . . . . recall_investigation 1 | . . . . . . . . 1 . . . . . . . map_route 3 | . . . . . . . . 1 1 . . . . . 1 mark_security 1 | . . . . . . . . . . . 1 . . . . ignore_targets 1 | . . . . . . . . . . 1 . . . . . wipe_record 1 | . . . . . . . . 1 . . . . . . . disable_weapons 1 | . . . . . . . . . . . . . . 1 . reboot_system 10 | . . . . . . . . . 1 . 1 . 2 3 3 overwrite_iff 1 | . . . . . . . . . . . 1 . . . . Relay Couplers Released 30 | . . . . . . . 5 4 4 . . 4 2 4 7 Ejected 23 | . . . . . . . . 4 4 . . 4 . 4 7 Machine Destruction 7 | . . . . . . . 5 . . . . . 2 . . Attached 13 | . . . . . . . . 2 3 . 1 2 . 2 3 Robots Rewired 1 | . . . . . . . . . 1 . . . . . . Allies Hacked . | . . . . . . . . . . . . . . . . Hacks Repelled . | . . . . . . . . . . . . . . . . Allies | -11 -10 -10 -10 -9 -8 -7 -7 -6 -5 -5 -5 -4 -3 -2 -1 -------- Run | Scr Mat Min Exi Min Mat Fac Gar Fac Fac Was Fac Fac Res Res Acc Total Allies 26 | . . . . . . . . 2 1 20 2 . 1 . . Largest Group 20 | . . . . . . . . 2 1 20 1 . 1 . . Highest-Rated Group 798 | . . . . . . . . 76 49 798 29 . 44 . . Highest-Rated Ally 50 | . . . . . . . . 38 49 50 29 . 44 . . Total Orders 10 | . . . . . . . . 1 1 . 3 . 5 . . GOTO 6 | . . . . . . . . 1 . . 2 . 3 . . FOLLOW 4 | . . . . . . . . . 1 . 1 . 2 . . Ally Attacks 39 | . . . . . . . . 7 3 10 5 . . . 14 Total Damage 2024 | . . . . . . . . 217 75 757 74 . . . 901 Kills 17 | . . . . . . . . 2 1 5 1 . . . 8 Allies Corrupted . | . . . . . . . . . . . . . . . . Allies Melted . | . . . . . . . . . . . . . . . . Turrets Deployed 3 | . . . . . . . . . . . . . . . 3 Intel | -11 -10 -10 -10 -9 -8 -7 -7 -6 -5 -5 -5 -4 -3 -2 -1 ------- Run | Scr Mat Min Exi Min Mat Fac Gar Fac Fac Was Fac Fac Res Res Acc Robot Analysis Total 2 | . 2 . . . . . . . . . . . . . . Derelict Logs Recovered 2 | . . 1 . 1 . . . . . . . . . . . Drone Launches . | . . . . . . . . . . . . . . . . Drone Recoveries . | . . . . . . . . . . . . . . . . Exploration | -11 -10 -10 -10 -9 -8 -7 -7 -6 -5 -5 -5 -4 -3 -2 -1 ------------- Run | Scr Mat Min Exi Min Mat Fac Gar Fac Fac Was Fac Fac Res Res Acc Turns Passed 9601 | 56 414 484 766 464 944 695 498 800 741 43 1015 293 903 875 610 Spaces Moved 8945 | 54 287 305 471 253 404 319 185 1122 1032 69 1099 498 1165 1022 660 Core 14 | 14 . . . . . . . . . . . . . . . Treads 678 | . . . . . 174 319 185 . . . . . . . . Legs 1040 | . . 86 471 253 230 . . . . . . . . . . Wheels 546 | 40 287 219 . . . . . . . . . . . . . Hover 6667 | . . . . . . . . 1122 1032 69 1099 498 1165 1022 660 Flight . | . . . . . . . . . . . . . . . . Fastest Speed 30 | 50 80 90 150 150 150 180 180 40 48 48 48 36 45 30 30 Average Speed 70 | 76 89 118 156 163 184 180 180 44 48 48 48 42 45 34 34 Slowest Speed 220 | 100 100 150 180 180 220 180 180 100 48 48 48 48 45 98 36 Overloaded Moves . | . . . . . . . . . . . . . . . . Propulsion Burnouts . | . . . . . . . . . . . . . . . . Robots Hopped 5 | . . . . . . . . . . . . . . . 5 Cave-ins Triggered . | . . . . . . . . . . . . . . . . Time Travels 1 | . . . 1 . . . . . . . . . . . . Exploration Rate (%) 39 | 3 52 53 89 77 42 14 44 27 37 68 37 16 25 29 20 Regions Visited 15 Branch Regions 3 Pre-discovered Areas 3 | . . 1 1 . . . . 1 . . . . . . . Known Exits Taken 4 | . . . . . . 1 . . . . 1 1 . 1 . Unknown Exits Taken 8 | 1 1 1 1 1 1 . . 1 . . . . 1 . . Scrap Searched 3 | . . 2 . 1 . . . . . . . . . . . Spaces Dug 121 | . 7 . . . . 2 1 4 2 . 11 9 21 39 25 Terrain Destroyed 352 | . 57 . . 94 9 5 9 28 2 . 54 9 21 39 25 Melee 94 | . . . . . . . . . . . . 9 21 39 25 Projectile 13 | . . . . . . 2 2 4 2 . 3 . . . . AOE 245 | . 57 . . 94 9 3 7 24 . . 51 . . . . Actions | -11 -10 -10 -10 -9 -8 -7 -7 -6 -5 -5 -5 -4 -3 -2 -1 --------- Run | Scr Mat Min Exi Min Mat Fac Gar Fac Fac Was Fac Fac Res Res Acc Total 11667 | 65 384 402 499 281 585 413 337 1374 1260 78 1553 550 1476 1429 981 Wait 1750 | . 25 61 19 3 111 27 128 121 143 9 385 5 241 261 211 Move 8920 | 53 286 304 470 252 403 318 184 1121 1032 68 1098 497 1164 1021 649 Hop 5 | . . . . . . . . . . . . . . . 5 Pick Up 150 | 6 12 10 4 3 17 19 3 17 11 . 4 6 4 17 17 Fast Attach 68 | 6 6 1 2 . 7 2 . 5 5 . 3 6 5 13 7 Attach 44 | . 3 4 1 3 4 4 . 7 5 . 1 3 . 5 4 Detach 22 | . 1 . . . . 1 . 5 3 . 2 3 2 1 4 Swap 70 | . 3 . . 2 3 5 4 17 5 . 4 1 3 8 15 Drop 146 | . 13 7 3 . 17 8 3 22 12 . 6 6 4 23 22 Fire 299 | . 35 15 . 18 19 28 13 59 25 1 47 4 15 9 11 Melee 164 | . . . . . . . . . . . . 19 38 71 36 Ram . | . . . . . . . . . . . . . . . . Kick . | . . . . . . . . . . . . . . . . Crush 5 | . . . . . 4 1 . . . . . . . . . Escape Stasis 9 | . . . . . . . 2 . 4 . 3 . . . . Rewire 15 | . . . . . . . . . 15 . . . . . . Trap . | . . . . . . . . . . . . . . . . Miscellaneous . | . . . . . . . . . . . . . . . . Route ------- -11/Scrapyard -10/Materials (discovered 3 exits: *Mat x2 / [*Min]) -10/Mines (discovered 3 exits: *Mat x2 / *Exi) -10/Exiles (discovered 2 exits: [*Min x2]) -9/Mines -8/Materials -7/Factory -7/Garrison -6/Factory (discovered 2 exits: *Fac x2) -5/Factory (discovered 3 exits: Fac / *Upp x2) -5/Waste -5/Factory (discovered 6 exits: *Fac x4 / *Upp x2) -4/Factory (discovered 4 exits: *Res x4) -3/Research (discovered 4 exits: *Res / Arm / Tes x2) -2/Research (discovered 3 exits: *Acc x3) -1/Access To Epsilon Eridani History --------- Turn | Location | Event 23 | -11/Scrapyard | Discovered new exit (range 15) 57 | -11/Scrapyard | Entered Materials 279 | -10/Materials | Discovered new exit (range 6) 302 | -10/Materials | Identified exit to Materials 337 | -10/Materials | Build established: Mutant 389 | -10/Materials | Discovered exit to Materials (range 14) 458 | -10/Materials | Discovered new exit (range 16) 471 | -10/Materials | Entered Mines 645 | -10/Mines | Found a damaged Exp. Sensor Array with a note attached 648 | -10/Mines | Found Prototype Device 660 | -10/Mines | Discovered exit to Materials (range 3) 744 | -10/Mines | Discovered exit to Materials (range 9) 931 | -10/Mines | Learned location of Zion (-7) 949 | -10/Mines | Deemed a non-threat by the Exiles lab entrance 949 | -10/Mines | Discovered new exit (range 5) 955 | -10/Mines | Entered Exiles 975 | -10/Exiles | Discovered new exit (range 15) 996 | -10/Exiles | Met 8R-AWN 1017 | -10/Exiles | Met EX-HEX 1081 | -10/Exiles | Met EX-DEC 1111 | -10/Exiles | Visited The Gauntlet 1315 | -10/Exiles | Met EX-BIN 1432 | -10/Exiles | Aligned with FarCom system 1434 | -10/Exiles | Given EX-Vault access code 1468 | -10/Exiles | Opened EX-Vault 1480 | -10/Exiles | Found Latent Energy Streamer 1507 | -10/Exiles | Found Chronowheel 1507 | -10/Exiles | Activated Chronowheel 1507 | -10/Exiles | Spacetime reconverged on an earlier point 1511 | -10/Exiles | Found Deploy-a-Sentry 1513 | -10/Exiles | Found Deploy-a-Sentry 1516 | -10/Exiles | Found Deploy-a-Sentry 1565 | -10/Exiles | Warned to stay clear of 0b10 Research branches 1707 | -10/Exiles | Discovered new exit (range 10) 1721 | -10/Exiles | Left Exiles lab with Deploy-a-Sentry 1721 | -10/Exiles | Entered Mines 1793 | -9/Mines | Received a Rocket Launcher from a helpful Derelict 1902 | -9/Mines | Assembled infested the area 1907 | -9/Mines | Assisted by a Guerilla fighting off Assembled 1960 | -9/Mines | Core integrity fell below 50% 2125 | -9/Mines | Learned Materials trap positions 2171 | -9/Mines | Discovered new exit (range 7) 2185 | -9/Mines | Entered Materials 2185 | -8/Materials | Evolved 4 slots: Utility x4 2186 | -8/Materials | Loaded intel: 6 trap records 2853 | -8/Materials | Discovered new exit (range 10) 2975 | -8/Materials | Build established: Scavenger-Mutant 3129 | -8/Materials | Entered Factory 3129 | -7/Factory | Evolved 2 slots: Propulsion x2 3535 | -7/Factory | Fabricated Lrn. Sensor Array? 3633 | -7/Factory | Identified Exp. Sensor Array 3817 | -7/Factory | Identified exit to Garrison 3824 | -7/Factory | Entered Garrison 3833 | -7/Garrison | Installed Relay Interface Framework 4040 | -7/Garrison | Triggered checkpoint 4167 | -7/Garrison | Discovered new exit (range 8) 4191 | -7/Garrison | Build established: Hauler-Mutant 4210 | -7/Garrison | Triggered checkpoint 4322 | -7/Garrison | Entered Factory 4322 | -6/Factory | Evolved 2 slots: Power x1, Propulsion x1 4713 | -6/Factory | Discovered new exit (range 19) 4987 | -6/Factory | Build established: Scout 5019 | -6/Factory | Fabricated P-60 Hacker? 5114 | -6/Factory | Discovered new exit (range 15) 5122 | -6/Factory | Entered another Factory area 5122 | -5/Factory | Evolved 2 slots: Utility x2 5306 | -5/Factory | Discovered new exit (range 20) 5814 | -5/Factory | Discovered new exit (range 5) 5836 | -5/Factory | Identified exit to Upper Caves 5863 | -5/Factory | Sucked down chute 5863 | -5/Factory | Entered Waste 5864 | -5/Waste | Joined by Warlord forces that had cleared the area 5890 | -5/Waste | A Compactor rumbled back to life 5890 | -5/Waste | Spotted C-40 Crusher 5892 | -5/Waste | Discovered new exit (range 10) 5906 | -5/Waste | Entered Factory 5920 | -5/Factory | Build established: Bothacker-Mutant 6291 | -5/Factory | Identified exit to Factory 6921 | -5/Factory | Entered another Factory area 6921 | -4/Factory | Evolved 2 slots: Utility x2 7027 | -4/Factory | Identified exit to Research 7109 | -4/Factory | Repaired Gravmag Array? 7214 | -4/Factory | Entered Research 7214 | -3/Research | Evolved 2 slots: Utility x2 7310 | -3/Research | Identified exit to Armory 7310 | -3/Research | Identified exit to Testing 7635 | -3/Research | Build established: Hacker-Mutant 7864 | -3/Research | Found Exp. Transmission Jammer 8066 | -3/Research | Discovered new exit (range 12) 8112 | -3/Research | Found Prototype Device 8117 | -3/Research | Entered another Research area 8117 | -2/Research | Evolved 2 slots: Utility x2 8175 | -2/Research | Repaired Hrd. Medium Armor Plating 8211 | -2/Research | Repaired Cld. Airjet 8235 | -2/Research | Repaired Hvy. Rocket Launcher 8250 | -2/Research | Spotted B-90 Cyclops 8591 | -2/Research | Identified Exp. Thermal Defense Suite 8805 | -2/Research | Found Spectral Analyzer 8863 | -2/Research | Identified exit to Access 8931 | -2/Research | Found Prototype Device 8937 | -2/Research | Identified Exp. ECM Suite 8992 | -2/Research | Entered Access 8992 | -1/Access | Evolved 2 slots: Utility x2 9150 | -1/Access | Found Prototype Device 9152 | -1/Access | Found Prototype Launcher 9172 | -1/Access | Identified Exp. Focal Shield 9185 | -1/Access | Identified Point Singularity Launcher 9250 | -1/Access | DAS Turret deployed 9283 | -1/Access | Build established: Wizard-Mutant 9334 | -1/Access | Found Prototype Device 9339 | -1/Access | Identified Exp. Phase Shifter 9359 | -1/Access | Identified exit to Surface 9496 | -1/Access | Found Launcher Loader 9531 | -1/Access | DAS Turret deployed 9532 | -1/Access | DAS Turret deployed 9602 | *** | Escaped! Last Messages --------------- 09577_ R-10 Processor collects Adv. Target Analyzer. 09577_ R-10 Processor collects Mic. Fission Core. 09579_ S-43 Plague destroyed. 09580_ R-10 Processor collects Xenon Bombardment Thruster. 09582_ R-10 Processor collects Imp. Antigrav System. 09582_ R-10 Processor collects Sml. Battery. 09586_ S-43 Plague destroyed. 09587_ R-10 Processor collects Xenon Bombardment Thruster. 09588_ Acquired 26 matter. 09589_ Jacked R-10 Processor... >>ignore_parts Collection routines blocked. 09590_ Jacked R-10 Processor... >>ignore_parts Collection routines blocked. 09594_ Acquired 52 matter. 09599_ Connecting with Terminal... >>Open Sealed Barrier opened. 09600_ The Access Shell folds into the floor. Map ----- +----------------------------------------------------+ | ??????????# + #???? """ """ ?????????? | | ??????????# #^ #???# """S""" #????????? | | ??????????# # #???# #????????? | | ??????????# # #???# #????????? | | ??????????+ # ##??###############????????? | | ??????????# ######### #?????????????????????????? | | ??????????# ##??????## #????????????????????????? | | ??????????# #?????????##????????????????????????? | | ??????????# #???????????????????????????????????? | | # ????????# #?????######????????????????????????? | | # ??????#u%####### ########?????????????????? | | # ????# k% t "" #?????????????????? | | # ??# %%kt "T +?????????????????? | | # " # ####### ########?????????????????? | | # """ + #?????######????????????????????????? | | # """ # #???????????????????????????????????? | | # " ?# #???????????????????????????????????? | | ########??# #???????????????????????????????????? | | ??????????# #?????###???????????????????????????? | | ??????????# k####### ##########??????????????????? | | ??????????# w"""T""" "??????????????????? | | ??????????# R""" """ "????BB????????????? | | ??????????# "????BB????????????? | | ??????????# "??????????????????? | | ??????????# "" "??????????????????? | | ??????????# @" "??????????????????? | | ??????????# "??????????????????? | | ??????????# "????BB????????????? | | ??????????# "????BB????????????? | | ??????????# "??????????????????? | | ??????????# ####### ##########??????????????????? | | ??????????# #?????###???????????????????????????? | | ??????????# #???????????????????????????????????? | | ??????????# #???????????????????????????????????? | | ??????????# #???????????????????????????????????? | | ??????????# #???????????????????????????????????? | | ??????????# ???????????????????????????????????? | | ??????????# ???????????????????????????????????? | | ??????????# ???????????????????????????????????? | | ?????????? ???????????????????????????????????? | | ?????????? ???????????????????????????????????? | | ?????????? ??????A????????????????????????????? | | ?????????? ???????????????????????????????????? | | ?????????##+#????????????????????????????????????? | | ?????????????????????????????????????????????????? | | ??????????????????????A??????????????????????????? | | ?????????????????????????????????????????????????? | | ?????????????????????????????????????????????????? | | ?????????????????????????????????????????????????? | | ?????????????????????????????????????????????????? | +----------------------------------------------------+ Best States ------------- Heat Dissipation 52 Energy Generation 45 Energy Capacity 325 Matter Stores 300 Matter Capacity 300 Sight Range 24 Robot Scan Range 30 Terrain Scan Range 20 Terrain Scan Density 210 Jamming Range 22 Armor Coverage 450 Resistance: KI 30 Utility Shielding 33 Weapon Shielding 66 Evasion (%) 73 Targeting Accuracy 8 Melee Accuracy 8 Recoil Reduction 4 Offensive Hacking 56 Defensive Hacking 10 Item Schematics ----------------- Imp. Antigrav System | -6/Factory | Hacked Robot Schematics ------------------ P-60 Hacker | -7/Factory | Hacked Fabricated ------------ Lrn. Sensor Array | x1 | -7/Factory | Preloaded P-60 Hacker | x2 | -6/Factory Alien Tech Used ----------------- None Achievements -------------- None Challenges ------------ None Game ------ Seed DroneGuidedRouter Manual? 0 Play Time 03:12:16 Cumulative 315.8 hours Start 2019.11.17 @ 03:22:48 End 2019.11.17 @ 21:22:43 Sessions 5 Manual Loads 0 Difficulty Rogue Special Mode None Game No. 573 Rogue 573 Adventurer 0 Explorer 0 Win Type 0 Total 48 Types 36/3/3/2/1/1/2 Lore% 93 Gallery% 91 Achievement% 71 Wizard Run 0 Options --------- ASCII 1 Keyboard 1 Movement Numpad Keybinds 0 Fullscreen 2 Font 18/Terminus Map View 76x50 Tactical HUD 1 Map Filters NONE Filters NONE Steam 1 RUN: 9dc025ed-7e1c-4dec-8ff4-7493e7d2335f